[Event "Early Titled Tuesday Blitz | February 8 2022"]
[White "Caruana, Fabiano"]
[Black "Vaishali, Rameshbabu"]
[WhiteFideId "2020009"]
[BlackFideId "5091756"]
[WhiteElo "2744"]
[BlackElo "2343"]
[Result "1-0"]
[Round "04"]
[TimeControl "180+1"]
[Date "2022.02.08"]
[WhiteClock "0:00:09"]
[BlackClock "0:00:04"]

1. c4 {[%clk 0:03:00]}  e5 {[%clk 0:02:59]} 2. g3 {[%clk 0:03:00]}  c6 {[%clk 0:02:57]} 3. d4 {[%clk 0:02:58]}  e4 {[%clk 0:02:56]} 4. Qa4 {[%clk 0:02:58]}  d5 {[%clk 0:02:47]} 5. cxd5 {[%clk 0:02:58]}  Bd7 {[%clk 0:02:31]} 6. Nc3 {[%clk 0:02:40]}  Nf6 {[%clk 0:02:29]} 7. Qb3 {[%clk 0:02:39]}  cxd5 {[%clk 0:02:23]} 8. Bg5 {[%clk 0:02:38]}  Bc6 {[%clk 0:02:22]} 9. Nh3 {[%clk 0:02:26]}  Nbd7 {[%clk 0:02:17]} 10. Nf4 {[%clk 0:02:16]}  h6 {[%clk 0:02:17]} 11. Bxf6 {[%clk 0:02:16]}  Nxf6 {[%clk 0:02:16]} 12. h4 {[%clk 0:02:16]}  a5 {[%clk 0:01:51]} 13. a3 {[%clk 0:02:10]}  a4 {[%clk 0:01:48]} 14. Qd1 {[%clk 0:02:10]}  Qb6 {[%clk 0:01:45]} 15. Qd2 {[%clk 0:02:04]}  Bd6 {[%clk 0:01:39]} 16. e3 {[%clk 0:02:03]}  Rc8 {[%clk 0:01:31]} 17. Be2 {[%clk 0:02:02]}  O-O {[%clk 0:01:19]} 18. O-O {[%clk 0:01:50]}  Bxf4 {[%clk 0:01:16]} 19. exf4 {[%clk 0:01:51]}  Bd7 {[%clk 0:01:14]} 20. Rac1 {[%clk 0:01:49]}  Rc7 {[%clk 0:00:59]} 21. Rc2 {[%clk 0:01:26]}  Rfc8 {[%clk 0:00:59]} 22. Rfc1 {[%clk 0:01:26]}  h5 {[%clk 0:00:43]} 23. Bf1 {[%clk 0:01:02]}  g6 {[%clk 0:00:40]} 24. Be2 {[%clk 0:01:02]}  Kg7 {[%clk 0:00:40]} 25. Bd1 {[%clk 0:00:52]}  Kg8 {[%clk 0:00:18]} 26. f5 {[%clk 0:00:49]}  Bxf5 {[%clk 0:00:13]} 27. Nxa4 {[%clk 0:00:49]}  Rxc2 {[%clk 0:00:11]} 28. Rxc2 {[%clk 0:00:50]}  Rxc2 {[%clk 0:00:10]} 29. Bxc2 {[%clk 0:00:51]}  Qb5 {[%clk 0:00:06]} 30. Bd1 {[%clk 0:00:37]}  Ng4 {[%clk 0:00:07]} 31. Nc3 {[%clk 0:00:35]}  Qc4 {[%clk 0:00:05]} 32. Be2 {[%clk 0:00:19]}  Qb3 {[%clk 0:00:05]} 33. Nd1 {[%clk 0:00:19]}  Kg7 {[%clk 0:00:04]} 34. Qc3 {[%clk 0:00:16]}  Qa2 {[%clk 0:00:03]} 35. Qc2 {[%clk 0:00:16]}  Nf6 {[%clk 0:00:03]} 36. Ne3 {[%clk 0:00:15]}  Qa1+ {[%clk 0:00:03]} 37. Kg2 {[%clk 0:00:14]}  Bh3+ {[%clk 0:00:03]} 38. Kh2 {[%clk 0:00:13]}  Be6 {[%clk 0:00:04]} 39. Bd1 {[%clk 0:00:13]}  b6 {[%clk 0:00:04]} 40. a4 {[%clk 0:00:13]}  Qa2 {[%clk 0:00:03]} 41. b4 {[%clk 0:00:11]}  Qa3 {[%clk 0:00:03]} 42. Qd2 {[%clk 0:00:11]}  Ng4+ {[%clk 0:00:03]} 43. Nxg4 {[%clk 0:00:10]}  hxg4 {[%clk 0:00:03]} 44. a5 {[%clk 0:00:10]}  bxa5 {[%clk 0:00:03]} 45. bxa5 {[%clk 0:00:10]}  f5 {[%clk 0:00:03]} 46. Be2 {[%clk 0:00:09]}  Kf7 {[%clk 0:00:02]} 47. a6 {[%clk 0:00:09]}  Bc8 {[%clk 0:00:03]} 48. h5 {[%clk 0:00:06]}  Bxa6 {[%clk 0:00:02]} 49. Qg5 {[%clk 0:00:05]}  Bxe2 {[%clk 0:00:02]} 50. Qxg6+ {[%clk 0:00:05]}  Ke7 {[%clk 0:00:02]} 51. Qg7+ {[%clk 0:00:06]}  Ke6 {[%clk 0:00:02]} 52. Qg8+ {[%clk 0:00:06]}  Ke7 {[%clk 0:00:02]} 53. Qg7+ {[%clk 0:00:06]}  Kd8 {[%clk 0:00:02]} 54. Qf6+ {[%clk 0:00:06]}  Kc7 {[%clk 0:00:02]} 55. Qe5+ {[%clk 0:00:07]}  Kb6 {[%clk 0:00:02]} 56. Qe6+ {[%clk 0:00:06]}  Ka5 {[%clk 0:00:03]} 57. Qxd5+ {[%clk 0:00:07]}  Bb5 {[%clk 0:00:03]} 58. Qa8+ {[%clk 0:00:06]}  Ba6 {[%clk 0:00:03]} 59. Qd8+ {[%clk 0:00:06]}  Ka4 {[%clk 0:00:03]} 60. Qd7+ {[%clk 0:00:07]}  Bb5 {[%clk 0:00:03]} 61. Qa7+ {[%clk 0:00:07]}  Kb3 {[%clk 0:00:04]} 62. Qxa3+ {[%clk 0:00:07]}  Kxa3 {[%clk 0:00:04]} 63. h6 {[%clk 0:00:07]}  f4 {[%clk 0:00:03]} 64. gxf4 {[%clk 0:00:07]}  e3 {[%clk 0:00:03]} 65. fxe3 {[%clk 0:00:08]}  Bd3 {[%clk 0:00:03]} 66. d5 {[%clk 0:00:08]}  Kb4 {[%clk 0:00:03]} 67. d6 {[%clk 0:00:09]}  Bf5 {[%clk 0:00:04]} 68. d7 {[%clk 0:00:09]} 1-0


[Site "https://www.chess.com"]

[Event "Early Titled Tuesday Blitz | February 8 2022"]
[White "Chernomordik, Pavel"]
[Black "Brodowski, Piotr"]
[WhiteFideId "2804530"]
[BlackFideId "1124480"]
[WhiteElo "2249"]
[BlackElo "2422"]
[Result "1-0"]
[Round "04"]
[TimeControl "180+1"]
[Date "2022.02.08"]
[WhiteClock "0:00:02"]
[BlackClock "0:00:25"]

1. e4 {[%clk 0:02:58]}  d6 {[%clk 0:02:59]} 2. d4 {[%clk 0:02:53]}  Nf6 {[%clk 0:02:59]} 3. Nc3 {[%clk 0:02:52]}  g6 {[%clk 0:02:59]} 4. Bg5 {[%clk 0:02:51]}  h6 {[%clk 0:02:53]} 5. Bh4 {[%clk 0:02:51]}  Bg7 {[%clk 0:02:53]} 6. f4 {[%clk 0:02:50]}  O-O {[%clk 0:02:30]} 7. Nf3 {[%clk 0:02:47]}  Bg4 {[%clk 0:02:28]} 8. h3 {[%clk 0:02:44]}  Bxf3 {[%clk 0:02:28]} 9. Qxf3 {[%clk 0:02:43]}  Nc6 {[%clk 0:02:18]} 10. O-O-O {[%clk 0:02:43]}  Nh7 {[%clk 0:01:55]} 11. Bf2 {[%clk 0:02:36]}  Qe8 {[%clk 0:01:53]} 12. g4 {[%clk 0:02:31]}  e5 {[%clk 0:01:52]} 13. dxe5 {[%clk 0:02:25]}  dxe5 {[%clk 0:01:53]} 14. f5 {[%clk 0:02:22]}  Nd4 {[%clk 0:01:53]} 15. Qd3 {[%clk 0:02:12]}  c6 {[%clk 0:01:50]} 16. h4 {[%clk 0:02:09]}  Rd8 {[%clk 0:01:48]} 17. Qg3 {[%clk 0:02:06]}  Qe7 {[%clk 0:01:45]} 18. Be3 {[%clk 0:02:01]}  g5 {[%clk 0:01:17]} 19. hxg5 {[%clk 0:02:00]}  Nxg5 {[%clk 0:01:17]} 20. Rh5 {[%clk 0:01:54]}  b5 {[%clk 0:01:08]} 21. Bd3 {[%clk 0:01:35]}  Qf6 {[%clk 0:01:07]} 22. Rdh1 {[%clk 0:01:30]}  Rd6 {[%clk 0:01:03]} 23. Qh4 {[%clk 0:01:18]}  Rfd8 {[%clk 0:00:52]} 24. Bxg5 {[%clk 0:01:07]}  hxg5 {[%clk 0:00:53]} 25. Rxg5 {[%clk 0:01:05]}  Kf8 {[%clk 0:00:43]} 26. Rh5 {[%clk 0:01:05]}  Nf3 {[%clk 0:00:36]} 27. Qxf6 {[%clk 0:00:59]}  Bxf6 {[%clk 0:00:37]} 28. Ne2 {[%clk 0:00:51]}  a6 {[%clk 0:00:36]} 29. Rh7 {[%clk 0:00:45]}  c5 {[%clk 0:00:34]} 30. Nc3 {[%clk 0:00:31]}  c4 {[%clk 0:00:33]} 31. Be2 {[%clk 0:00:31]}  Nd4 {[%clk 0:00:27]} 32. Bd1 {[%clk 0:00:29]}  Bg5+ {[%clk 0:00:26]} 33. Kb1 {[%clk 0:00:29]}  Ke7 {[%clk 0:00:27]} 34. Nd5+ {[%clk 0:00:28]}  Rxd5 {[%clk 0:00:22]} 35. exd5 {[%clk 0:00:28]}  Rxd5 {[%clk 0:00:22]} 36. c3 {[%clk 0:00:25]}  Nc6 {[%clk 0:00:21]} 37. Bf3 {[%clk 0:00:25]}  Rd6 {[%clk 0:00:21]} 38. Bxc6 {[%clk 0:00:19]}  Rxc6 {[%clk 0:00:22]} 39. Rg7 {[%clk 0:00:19]}  Kf6 {[%clk 0:00:19]} 40. Rhh7 {[%clk 0:00:18]}  Rc7 {[%clk 0:00:19]} 41. Rg8 {[%clk 0:00:18]}  Rd7 {[%clk 0:00:19]} 42. a4 {[%clk 0:00:17]}  e4 {[%clk 0:00:19]} 43. Re8 {[%clk 0:00:17]}  e3 {[%clk 0:00:19]} 44. axb5 {[%clk 0:00:15]}  axb5 {[%clk 0:00:20]} 45. Rh2 {[%clk 0:00:15]}  Bf4 {[%clk 0:00:20]} 46. Re2 {[%clk 0:00:15]}  Kg5 {[%clk 0:00:20]} 47. Rg8+ {[%clk 0:00:13]}  Kf6 {[%clk 0:00:21]} 48. Kc2 {[%clk 0:00:09]}  Ke5 {[%clk 0:00:21]} 49. Re8+ {[%clk 0:00:08]}  Kf6 {[%clk 0:00:22]} 50. R8xe3 {[%clk 0:00:07]}  Bxe3 {[%clk 0:00:22]} 51. Rxe3 {[%clk 0:00:07]}  Rd8 {[%clk 0:00:22]} 52. Re4 {[%clk 0:00:06]}  Rg8 {[%clk 0:00:22]} 53. Rd4 {[%clk 0:00:05]}  Ke5 {[%clk 0:00:22]} 54. Kd2 {[%clk 0:00:05]}  f6 {[%clk 0:00:23]} 55. Ke3 {[%clk 0:00:05]}  Rh8 {[%clk 0:00:23]} 56. Re4+ {[%clk 0:00:05]}  Kd5 {[%clk 0:00:24]} 57. Re6 {[%clk 0:00:05]}  Rh2 {[%clk 0:00:24]} 58. Rxf6 {[%clk 0:00:04]}  Rxb2 {[%clk 0:00:25]} 59. Rb6 {[%clk 0:00:04]}  Kc5 {[%clk 0:00:25]} 60. Rb8 {[%clk 0:00:02]}  Rc2 {[%clk 0:00:26]} 61. f6 {[%clk 0:00:02]}  Rxc3+ {[%clk 0:00:26]} 62. Kf4 {[%clk 0:00:03]}  Rc1 {[%clk 0:00:26]} 63. g5 {[%clk 0:00:03]}  Rf1+ {[%clk 0:00:26]} 64. Ke5 {[%clk 0:00:03]}  c3 {[%clk 0:00:27]} 65. Rc8+ {[%clk 0:00:02]}  Kb4 {[%clk 0:00:27]} 66. Ke6 {[%clk 0:00:03]}  Kb3 {[%clk 0:00:27]} 67. g6 {[%clk 0:00:02]}  c2 {[%clk 0:00:27]} 68. g7 {[%clk 0:00:02]}  c1=Q {[%clk 0:00:21]} 69. Rxc1 {[%clk 0:00:01]}  Rxc1 {[%clk 0:00:21]} 70. g8=Q {[%clk 0:00:01]}  Rc6+ {[%clk 0:00:22]} 71. Kd7+ {[%clk 0:00:01]}  Rc4 {[%clk 0:00:23]} 72. f7 {[%clk 0:00:01]}  b4 {[%clk 0:00:23]} 73. f8=Q {[%clk 0:00:02]}  Kb2 {[%clk 0:00:23]} 74. Qf2+ {[%clk 0:00:02]}  Rc2 {[%clk 0:00:23]} 75. Qg7+ {[%clk 0:00:02]}  Kb3 {[%clk 0:00:23]} 76. Qgf7+ {[%clk 0:00:02]}  Kb2 {[%clk 0:00:23]} 77. Q7f6+ {[%clk 0:00:03]}  Kb1 {[%clk 0:00:24]} 78. Q6f5 {[%clk 0:00:02]}  b3 {[%clk 0:00:24]} 79. Qd3 {[%clk 0:00:03]}  Kb2 {[%clk 0:00:24]} 80. Qf6+ {[%clk 0:00:01]}  Ka2 {[%clk 0:00:23]} 81. Qfa6+ {[%clk 0:00:01]}  Kb2 {[%clk 0:00:24]} 82. Qab5 {[%clk 0:00:01]}  Rc3 {[%clk 0:00:24]} 83. Qd4 {[%clk 0:00:01]}  Kc2 {[%clk 0:00:24]} 84. Qe2+ {[%clk 0:00:01]}  Kb1 {[%clk 0:00:24]} 85. Qxc3 {[%clk 0:00:01]}  b2 {[%clk 0:00:25]} 86. Qcxb2# {[%clk 0:00:02]} 1-0


[Site "https://www.chess.com"]

[Event "Early Titled Tuesday Blitz | February 8 2022"]
[White "Deac, Bogdan-Daniel"]
[Black "Alavkin, Arseny"]
[WhiteFideId "1226380"]
[BlackFideId "4120612"]
[WhiteElo "2646"]
[BlackElo "2391"]
[Result "1-0"]
[Round "04"]
[TimeControl "180+1"]
[Date "2022.02.08"]
[WhiteClock "0:00:40"]
[BlackClock "0:01:51"]

1. e4 {[%clk 0:02:53]}  e6 {[%clk 0:02:59]} 2. d4 {[%clk 0:02:51]}  d5 {[%clk 0:02:59]} 3. Nc3 {[%clk 0:02:48]}  Bb4 {[%clk 0:02:59]} 4. Ne2 {[%clk 0:02:48]}  dxe4 {[%clk 0:02:58]} 5. a3 {[%clk 0:02:48]}  Bxc3+ {[%clk 0:02:59]} 6. Nxc3 {[%clk 0:02:47]}  Nc6 {[%clk 0:02:58]} 7. d5 {[%clk 0:02:47]}  exd5 {[%clk 0:02:57]} 8. Qxd5 {[%clk 0:02:48]}  Be6 {[%clk 0:02:57]} 9. Qxd8+ {[%clk 0:02:44]}  Rxd8 {[%clk 0:02:58]} 10. Bf4 {[%clk 0:02:43]}  f5 {[%clk 0:02:57]} 11. Nb5 {[%clk 0:02:37]}  Bf7 {[%clk 0:02:53]} 12. Bxc7 {[%clk 0:02:32]}  Rd7 {[%clk 0:02:51]} 13. Nd6+ {[%clk 0:02:18]}  Ke7 {[%clk 0:02:51]} 14. Nxf7 {[%clk 0:02:01]}  Kxf7 {[%clk 0:02:52]} 15. Bf4 {[%clk 0:01:59]}  h6 {[%clk 0:02:51]} 16. Rd1 {[%clk 0:01:41]}  Rxd1+ {[%clk 0:02:49]} 17. Kxd1 {[%clk 0:01:42]}  Nge7 {[%clk 0:02:49]} 18. h4 {[%clk 0:01:41]}  g6 {[%clk 0:02:42]} 19. Bc4+ {[%clk 0:01:38]}  Kf6 {[%clk 0:02:41]} 20. Bd2 {[%clk 0:01:38]}  Rd8 {[%clk 0:02:39]} 21. Kc1 {[%clk 0:01:38]}  Nd4 {[%clk 0:02:33]} 22. Bxh6 {[%clk 0:01:33]}  Ne6 {[%clk 0:02:30]} 23. Rd1 {[%clk 0:01:22]}  Rxd1+ {[%clk 0:02:27]} 24. Kxd1 {[%clk 0:01:23]}  Nc6 {[%clk 0:02:27]} 25. Bd2 {[%clk 0:01:17]}  Ke7 {[%clk 0:02:24]} 26. Bc3 {[%clk 0:01:15]}  Ned4 {[%clk 0:02:23]} 27. a4 {[%clk 0:01:05]}  a6 {[%clk 0:02:20]} 28. Kd2 {[%clk 0:01:03]}  b5 {[%clk 0:02:13]} 29. axb5 {[%clk 0:01:02]}  axb5 {[%clk 0:02:14]} 30. Bxd4 {[%clk 0:00:58]}  bxc4 {[%clk 0:01:48]} 31. Kc3 {[%clk 0:00:56]}  f4 {[%clk 0:01:48]} 32. Kxc4 {[%clk 0:00:53]}  Ke6 {[%clk 0:01:49]} 33. b4 {[%clk 0:00:52]}  Kf5 {[%clk 0:01:50]} 34. b5 {[%clk 0:00:51]}  Nd8 {[%clk 0:01:50]} 35. b6 {[%clk 0:00:47]}  Kg4 {[%clk 0:01:49]} 36. Kd5 {[%clk 0:00:46]}  Nb7 {[%clk 0:01:49]} 37. Kxe4 {[%clk 0:00:45]}  Nd6+ {[%clk 0:01:48]} 38. Kd5 {[%clk 0:00:45]}  Nb7 {[%clk 0:01:49]} 39. c4 {[%clk 0:00:44]}  Kxh4 {[%clk 0:01:49]} 40. c5 {[%clk 0:00:44]}  Na5 {[%clk 0:01:48]} 41. c6 {[%clk 0:00:41]}  Nb3 {[%clk 0:01:49]} 42. c7 {[%clk 0:00:40]}  Kg4 {[%clk 0:01:50]} 43. c8=Q+ {[%clk 0:00:40]}  Kh4 {[%clk 0:01:51]} 44. Bf6+ {[%clk 0:00:40]}  Kh5 {[%clk 0:01:51]} 45. Qh3# {[%clk 0:00:40]} 1-0


[Site "https://www.chess.com"]

[Event "Early Titled Tuesday Blitz | February 8 2022"]
[White "Demchenko, Anton"]
[Black "Shtyka, Sergey"]
[WhiteFideId "4160258"]
[BlackFideId "4138465"]
[WhiteElo "2539"]
[BlackElo "2014"]
[Result "1-0"]
[Round "04"]
[TimeControl "180+1"]
[Date "2022.02.08"]
[WhiteClock "0:00:32"]
[BlackClock "0:00:09"]

1. e4 {[%clk 0:03:00]}  c5 {[%clk 0:02:59]} 2. Nf3 {[%clk 0:03:01]}  d6 {[%clk 0:02:57]} 3. d4 {[%clk 0:03:01]}  cxd4 {[%clk 0:02:58]} 4. Nxd4 {[%clk 0:03:02]}  Nf6 {[%clk 0:02:58]} 5. Nc3 {[%clk 0:03:02]}  g6 {[%clk 0:02:58]} 6. Be3 {[%clk 0:02:54]}  Bg7 {[%clk 0:02:58]} 7. Be2 {[%clk 0:02:54]}  O-O {[%clk 0:02:58]} 8. Qd2 {[%clk 0:02:54]}  Nc6 {[%clk 0:02:58]} 9. O-O-O {[%clk 0:02:55]}  Ng4 {[%clk 0:02:46]} 10. Bxg4 {[%clk 0:02:54]}  Bxg4 {[%clk 0:02:45]} 11. f3 {[%clk 0:02:54]}  Be6 {[%clk 0:02:39]} 12. Kb1 {[%clk 0:02:40]}  Rc8 {[%clk 0:02:33]} 13. h4 {[%clk 0:02:33]}  Ne5 {[%clk 0:02:18]} 14. b3 {[%clk 0:02:31]}  Nc6 {[%clk 0:01:27]} 15. Nce2 {[%clk 0:02:26]}  Qc7 {[%clk 0:01:21]} 16. h5 {[%clk 0:02:24]}  Bd7 {[%clk 0:00:58]} 17. hxg6 {[%clk 0:02:22]}  fxg6 {[%clk 0:00:58]} 18. Nb5 {[%clk 0:02:16]}  Qa5 {[%clk 0:00:47]} 19. Qxa5 {[%clk 0:02:07]}  Nxa5 {[%clk 0:00:47]} 20. Nxa7 {[%clk 0:02:07]}  Ra8 {[%clk 0:00:38]} 21. c4 {[%clk 0:01:50]}  Nc6 {[%clk 0:00:27]} 22. Nb5 {[%clk 0:01:39]}  Nb4 {[%clk 0:00:21]} 23. a4 {[%clk 0:01:38]}  Bxb5 {[%clk 0:00:19]} 24. cxb5 {[%clk 0:01:39]}  Rfc8 {[%clk 0:00:18]} 25. Rc1 {[%clk 0:01:36]}  Rxc1+ {[%clk 0:00:17]} 26. Rxc1 {[%clk 0:01:35]}  Kf7 {[%clk 0:00:18]} 27. Rc7 {[%clk 0:01:34]}  Rb8 {[%clk 0:00:18]} 28. Nc1 {[%clk 0:01:19]}  d5 {[%clk 0:00:15]} 29. Bd2 {[%clk 0:01:17]}  dxe4 {[%clk 0:00:14]} 30. Bxb4 {[%clk 0:01:17]}  exf3 {[%clk 0:00:14]} 31. gxf3 {[%clk 0:01:18]}  Bf6 {[%clk 0:00:14]} 32. Nd3 {[%clk 0:01:06]}  h5 {[%clk 0:00:14]} 33. f4 {[%clk 0:01:01]}  h4 {[%clk 0:00:14]} 34. Ne5+ {[%clk 0:00:59]}  Bxe5 {[%clk 0:00:14]} 35. Rxe7+ {[%clk 0:00:58]}  Kf6 {[%clk 0:00:13]} 36. Rxe5 {[%clk 0:00:53]}  h3 {[%clk 0:00:13]} 37. Bc3 {[%clk 0:00:47]}  Kf7 {[%clk 0:00:12]} 38. Re2 {[%clk 0:00:46]}  Re8 {[%clk 0:00:10]} 39. Rh2 {[%clk 0:00:37]}  Re3 {[%clk 0:00:10]} 40. Kc2 {[%clk 0:00:33]}  Rg3 {[%clk 0:00:09]} 41. a5 {[%clk 0:00:31]}  Rg2+ {[%clk 0:00:08]} 42. Rxg2 {[%clk 0:00:31]}  hxg2 {[%clk 0:00:09]} 43. Bd4 {[%clk 0:00:32]} 1-0


[Site "https://www.chess.com"]

[Event "Early Titled Tuesday Blitz | February 8 2022"]
[White "Di Nicolantonio, Lucas"]
[Black "Carre, Sylvain"]
[WhiteFideId "680460"]
[BlackFideId "642118"]
[WhiteElo "2381"]
[BlackElo "2105"]
[Result "1-0"]
[Round "04"]
[TimeControl "180+1"]
[Date "2022.02.08"]
[WhiteClock "0:00:10"]
[BlackClock "0:00:05"]

1. f4 {[%clk 0:03:00]}  d5 {[%clk 0:02:53]} 2. Nf3 {[%clk 0:02:56]}  Nf6 {[%clk 0:02:53]} 3. g3 {[%clk 0:02:56]}  c5 {[%clk 0:02:53]} 4. Bg2 {[%clk 0:02:55]}  Nc6 {[%clk 0:02:53]} 5. d3 {[%clk 0:02:56]}  Bf5 {[%clk 0:02:53]} 6. O-O {[%clk 0:02:55]}  e6 {[%clk 0:02:54]} 7. Nc3 {[%clk 0:02:55]}  Bg6 {[%clk 0:02:52]} 8. Nh4 {[%clk 0:02:44]}  Be7 {[%clk 0:02:52]} 9. e4 {[%clk 0:02:43]}  dxe4 {[%clk 0:02:44]} 10. dxe4 {[%clk 0:02:39]}  Qxd1 {[%clk 0:02:33]} 11. Rxd1 {[%clk 0:02:36]}  Nd4 {[%clk 0:02:34]} 12. Rd2 {[%clk 0:02:26]}  O-O-O {[%clk 0:02:30]} 13. Nxg6 {[%clk 0:02:18]}  hxg6 {[%clk 0:02:31]} 14. e5 {[%clk 0:02:18]}  Ng4 {[%clk 0:02:27]} 15. Be4 {[%clk 0:01:39]}  Nf5 {[%clk 0:01:57]} 16. Rxd8+ {[%clk 0:01:26]}  Rxd8 {[%clk 0:01:58]} 17. Bd3 {[%clk 0:01:23]}  c4 {[%clk 0:01:21]} 18. Bxc4 {[%clk 0:01:19]}  Bc5+ {[%clk 0:01:22]} 19. Kh1 {[%clk 0:00:58]}  Rh8 {[%clk 0:01:01]} 20. Kg2 {[%clk 0:00:46]}  Rxh2+ {[%clk 0:01:00]} 21. Kf3 {[%clk 0:00:47]}  Ngh6 {[%clk 0:00:31]} 22. Ne4 {[%clk 0:00:43]}  Nd4+ {[%clk 0:00:27]} 23. Ke3 {[%clk 0:00:38]}  Nxc2+ {[%clk 0:00:26]} 24. Kd3 {[%clk 0:00:38]}  Nxa1 {[%clk 0:00:20]} 25. Nxc5 {[%clk 0:00:38]}  Rh3 {[%clk 0:00:14]} 26. Ne4 {[%clk 0:00:36]}  Nf5 {[%clk 0:00:13]} 27. Ng5 {[%clk 0:00:21]}  Rxg3+ {[%clk 0:00:12]} 28. Ke2 {[%clk 0:00:22]}  Rg1 {[%clk 0:00:10]} 29. Bd2 {[%clk 0:00:21]}  Nc2 {[%clk 0:00:09]} 30. Nxf7 {[%clk 0:00:21]}  Ncd4+ {[%clk 0:00:10]} 31. Kd3 {[%clk 0:00:21]}  Rg3+ {[%clk 0:00:10]} 32. Ke4 {[%clk 0:00:20]}  Rg2 {[%clk 0:00:10]} 33. Bc3 {[%clk 0:00:17]}  b5 {[%clk 0:00:10]} 34. Bxd4 {[%clk 0:00:16]}  bxc4 {[%clk 0:00:10]} 35. Bc3 {[%clk 0:00:15]}  g5 {[%clk 0:00:06]} 36. Nxg5 {[%clk 0:00:15]}  Rg1 {[%clk 0:00:06]} 37. Nxe6 {[%clk 0:00:15]}  Ng3+ {[%clk 0:00:06]} 38. Kd5 {[%clk 0:00:15]}  Ne2 {[%clk 0:00:06]} 39. f5 {[%clk 0:00:15]}  Nxc3+ {[%clk 0:00:06]} 40. bxc3 {[%clk 0:00:15]}  g5 {[%clk 0:00:06]} 41. f6 {[%clk 0:00:13]}  Rf1 {[%clk 0:00:05]} 42. Nxg5 {[%clk 0:00:13]}  Kd7 {[%clk 0:00:04]} 43. e6+ {[%clk 0:00:13]}  Ke8 {[%clk 0:00:04]} 44. Ke5 {[%clk 0:00:13]}  Rg1 {[%clk 0:00:04]} 45. Kf5 {[%clk 0:00:13]}  Rf1+ {[%clk 0:00:05]} 46. Kg6 {[%clk 0:00:14]}  Rg1 {[%clk 0:00:05]} 47. a4 {[%clk 0:00:09]}  a5 {[%clk 0:00:05]} 48. Kh6 {[%clk 0:00:09]}  Rh1+ {[%clk 0:00:05]} 49. Kg7 {[%clk 0:00:09]}  Rg1 {[%clk 0:00:06]} 50. f7+ {[%clk 0:00:10]}  Kd8 {[%clk 0:00:05]} 51. f8=Q+ {[%clk 0:00:10]} 1-0


[Site "https://www.chess.com"]

[Event "Early Titled Tuesday Blitz | February 8 2022"]
[White "Dushyant Sharma"]
[Black "Williams, Simon K"]
[WhiteFideId "25065130"]
[BlackFideId "404454"]
[WhiteElo "2012"]
[BlackElo "2468"]
[Result "0-1"]
[Round "04"]
[TimeControl "180+1"]
[Date "2022.02.08"]
[WhiteClock "0:00:02"]
[BlackClock "0:01:25"]

1. e4 {[%clk 0:01:40]}  c5 {[%clk 0:02:56]} 2. Nf3 {[%clk 0:01:40]}  d6 {[%clk 0:02:56]} 3. d4 {[%clk 0:01:38]}  cxd4 {[%clk 0:02:56]} 4. Nxd4 {[%clk 0:01:39]}  Nf6 {[%clk 0:02:56]} 5. Nc3 {[%clk 0:01:39]}  g6 {[%clk 0:02:57]} 6. f4 {[%clk 0:01:39]}  Nbd7 {[%clk 0:02:56]} 7. Nf3 {[%clk 0:01:39]}  Qc7 {[%clk 0:02:55]} 8. Bd3 {[%clk 0:01:37]}  Bg7 {[%clk 0:02:55]} 9. O-O {[%clk 0:01:37]}  O-O {[%clk 0:02:55]} 10. Qe1 {[%clk 0:01:37]}  Nc5 {[%clk 0:02:45]} 11. Kh1 {[%clk 0:01:37]}  a6 {[%clk 0:02:36]} 12. a4 {[%clk 0:01:36]}  b6 {[%clk 0:02:36]} 13. Qh4 {[%clk 0:01:36]}  Bb7 {[%clk 0:02:35]} 14. f5 {[%clk 0:01:05]}  gxf5 {[%clk 0:02:23]} 15. exf5 {[%clk 0:00:54]}  Kh8 {[%clk 0:02:21]} 16. Bh6 {[%clk 0:00:48]}  Rg8 {[%clk 0:02:21]} 17. Ng5 {[%clk 0:00:43]}  Raf8 {[%clk 0:02:16]} 18. Rae1 {[%clk 0:00:14]}  Bxh6 {[%clk 0:02:11]} 19. Qxh6 {[%clk 0:00:14]}  Rxg5 {[%clk 0:02:06]} 20. Qxg5 {[%clk 0:00:14]}  Rg8 {[%clk 0:02:07]} 21. Qf4 {[%clk 0:00:06]}  Rxg2 {[%clk 0:01:57]} 22. Rf3 {[%clk 0:00:05]}  Rg4 {[%clk 0:01:52]} 23. Qe3 {[%clk 0:00:04]}  Nxd3 {[%clk 0:01:36]} 24. cxd3 {[%clk 0:00:04]}  Qc5 {[%clk 0:01:36]} 25. d4 {[%clk 0:00:03]}  Qxd4 {[%clk 0:01:35]} 26. h3 {[%clk 0:00:02]}  Rg3 {[%clk 0:01:25]} 0-1


[Site "https://www.chess.com"]

[Event "Early Titled Tuesday Blitz | February 8 2022"]
[White "Dylag, Emilia"]
[Black "Vovk, Orest"]
[WhiteFideId "21805172"]
[BlackFideId "14113490"]
[WhiteElo "1932"]
[BlackElo "2203"]
[Result "0-1"]
[Round "04"]
[TimeControl "180+1"]
[Date "2022.02.08"]
[WhiteClock "0:01:19"]
[BlackClock "0:02:21"]

1. d4 {[%clk 0:03:00]}  e5 {[%clk 0:02:59]} 2. dxe5 {[%clk 0:03:00]}  Nc6 {[%clk 0:02:59]} 3. Nf3 {[%clk 0:02:59]}  Qe7 {[%clk 0:03:00]} 4. Qd5 {[%clk 0:02:49]}  h6 {[%clk 0:02:59]} 5. Nc3 {[%clk 0:02:39]}  a6 {[%clk 0:02:59]} 6. g3 {[%clk 0:02:34]}  g5 {[%clk 0:02:58]} 7. Bg2 {[%clk 0:02:33]}  Bg7 {[%clk 0:02:58]} 8. O-O {[%clk 0:02:32]}  Nxe5 {[%clk 0:02:54]} 9. Nxe5 {[%clk 0:02:28]}  Bxe5 {[%clk 0:02:49]} 10. e4 {[%clk 0:02:19]}  Nf6 {[%clk 0:02:42]} 11. Qd3 {[%clk 0:02:19]}  d6 {[%clk 0:02:43]} 12. Nd5 {[%clk 0:02:14]}  Nxd5 {[%clk 0:02:42]} 13. exd5 {[%clk 0:02:15]}  g4 {[%clk 0:02:37]} 14. f3 {[%clk 0:02:10]}  gxf3 {[%clk 0:02:37]} 15. Bxf3 {[%clk 0:02:05]}  Bh3 {[%clk 0:02:35]} 16. Bg2 {[%clk 0:01:57]}  Bxg2 {[%clk 0:02:34]} 17. Kxg2 {[%clk 0:01:57]}  O-O-O {[%clk 0:02:34]} 18. Bd2 {[%clk 0:01:42]}  Kb8 {[%clk 0:02:26]} 19. c4 {[%clk 0:01:40]}  h5 {[%clk 0:02:25]} 20. Qc3 {[%clk 0:01:19]}  Bxc3 {[%clk 0:02:21]} 0-1


[Site "https://www.chess.com"]